[Event "Titled Tuesday Blitz February 28 Late 2023"]
[White "Figorito, Nick"]
[Black "Di Berardino, Diego Rafael"]
[WhiteFideId "30923689"]
[BlackFideId "2105446"]
[WhiteElo "2376"]
[BlackElo "2432"]
[Result "0-1"]
[Round "06"]
[TimeControl "180+2"]
[Date "2023.02.28"]
[WhiteClock "0:00:22"]
[BlackClock "0:00:12"]

1. Nf3 {[%clk 0:03:00]}  Nf6 {[%clk 0:02:57]} 2. g3 {[%clk 0:03:01]}  g6 {[%clk 0:02:56]} 3. Bg2 {[%clk 0:03:02]}  Bg7 {[%clk 0:02:57]} 4. O-O {[%clk 0:03:02]}  O-O {[%clk 0:02:57]} 5. c4 {[%clk 0:03:03]}  d6 {[%clk 0:02:58]} 6. Nc3 {[%clk 0:03:04]}  c5 {[%clk 0:02:55]} 7. Rb1 {[%clk 0:03:04]}  Nc6 {[%clk 0:02:53]} 8. a3 {[%clk 0:03:04]}  Bf5 {[%clk 0:02:32]} 9. d3 {[%clk 0:03:04]}  Qd7 {[%clk 0:02:33]} 10. b4 {[%clk 0:02:57]}  Bh3 {[%clk 0:02:23]} 11. b5 {[%clk 0:02:56]}  Nd4 {[%clk 0:01:55]} 12. Nxd4 {[%clk 0:02:48]}  cxd4 {[%clk 0:01:56]} 13. Na2 {[%clk 0:02:26]}  e5 {[%clk 0:01:46]} 14. Bg5 {[%clk 0:02:17]}  Bxg2 {[%clk 0:01:37]} 15. Kxg2 {[%clk 0:02:17]}  Ne8 {[%clk 0:01:36]} 16. Nb4 {[%clk 0:02:13]}  h6 {[%clk 0:01:35]} 17. Bd2 {[%clk 0:02:10]}  Nc7 {[%clk 0:01:29]} 18. a4 {[%clk 0:02:07]}  d5 {[%clk 0:01:27]} 19. c5 {[%clk 0:01:55]}  e4 {[%clk 0:01:21]} 20. Bf4 {[%clk 0:01:46]}  Rfe8 {[%clk 0:01:05]} 21. Bxc7 {[%clk 0:01:43]}  Qxc7 {[%clk 0:01:03]} 22. Rc1 {[%clk 0:01:31]}  Qe5 {[%clk 0:00:39]} 23. c6 {[%clk 0:01:19]}  bxc6 {[%clk 0:00:37]} 24. Nxc6 {[%clk 0:01:18]}  Qh5 {[%clk 0:00:30]} 25. Rc5 {[%clk 0:01:01]}  exd3 {[%clk 0:00:15]} 26. exd3 {[%clk 0:00:59]}  Qf5 {[%clk 0:00:11]} 27. Qf3 {[%clk 0:00:55]}  Qxf3+ {[%clk 0:00:09]} 28. Kxf3 {[%clk 0:00:56]}  a6 {[%clk 0:00:09]} 29. Rxd5 {[%clk 0:00:51]}  axb5 {[%clk 0:00:09]} 30. axb5 {[%clk 0:00:52]}  Ra3 {[%clk 0:00:09]} 31. Rd1 {[%clk 0:00:50]}  Rb3 {[%clk 0:00:09]} 32. Nxd4 {[%clk 0:00:46]}  Bxd4 {[%clk 0:00:08]} 33. Rxd4 {[%clk 0:00:47]}  Rxb5 {[%clk 0:00:08]} 34. Rd2 {[%clk 0:00:32]}  h5 {[%clk 0:00:08]} 35. h4 {[%clk 0:00:32]}  Kg7 {[%clk 0:00:08]} 36. Rf4 {[%clk 0:00:32]}  Rd5 {[%clk 0:00:07]} 37. d4 {[%clk 0:00:31]}  Re1 {[%clk 0:00:08]} 38. Re4 {[%clk 0:00:27]}  Ra1 {[%clk 0:00:07]} 39. Kg2 {[%clk 0:00:20]}  Ra4 {[%clk 0:00:05]} 40. Kf3 {[%clk 0:00:17]}  Rd7 {[%clk 0:00:06]} 41. Ke3 {[%clk 0:00:16]}  Ra3+ {[%clk 0:00:06]} 42. Rd3 {[%clk 0:00:16]}  Ra1 {[%clk 0:00:06]} 43. d5 {[%clk 0:00:16]}  Re1+ {[%clk 0:00:06]} 44. Kf3 {[%clk 0:00:15]}  Ra1 {[%clk 0:00:06]} 45. d6 {[%clk 0:00:15]}  Ra6 {[%clk 0:00:06]} 46. Red4 {[%clk 0:00:15]}  Kf6 {[%clk 0:00:07]} 47. Rf4+ {[%clk 0:00:14]}  Ke6 {[%clk 0:00:07]} 48. Re4+ {[%clk 0:00:15]}  Kf6 {[%clk 0:00:08]} 49. Red4 {[%clk 0:00:15]}  Kg7 {[%clk 0:00:07]} 50. Kg2 {[%clk 0:00:13]}  Kf6 {[%clk 0:00:07]} 51. Rf3+ {[%clk 0:00:13]}  Ke5 {[%clk 0:00:07]} 52. Rdf4 {[%clk 0:00:13]}  f5 {[%clk 0:00:06]} 53. Re3+ {[%clk 0:00:12]}  Kf6 {[%clk 0:00:06]} 54. Rd3 {[%clk 0:00:09]}  Raxd6 {[%clk 0:00:07]} 55. Rfd4 {[%clk 0:00:10]}  Rxd4 {[%clk 0:00:07]} 56. Rxd4 {[%clk 0:00:10]}  Rxd4 {[%clk 0:00:07]} 57. Kf3 {[%clk 0:00:11]}  Ra4 {[%clk 0:00:07]} 58. Kg2 {[%clk 0:00:12]}  Ra3 {[%clk 0:00:07]} 59. Kh3 {[%clk 0:00:13]}  Ke5 {[%clk 0:00:08]} 60. Kg2 {[%clk 0:00:13]}  f4 {[%clk 0:00:08]} 61. Kh3 {[%clk 0:00:11]}  fxg3 {[%clk 0:00:06]} 62. fxg3 {[%clk 0:00:12]}  Kf5 {[%clk 0:00:06]} 63. Kg2 {[%clk 0:00:13]}  Kg4 {[%clk 0:00:06]} 64. Kf2 {[%clk 0:00:13]}  Rxg3 {[%clk 0:00:06]} 65. Ke2 {[%clk 0:00:14]}  Rh3 {[%clk 0:00:06]} 66. Kd2 {[%clk 0:00:15]}  Kxh4 {[%clk 0:00:07]} 67. Kc2 {[%clk 0:00:16]}  Rg3 {[%clk 0:00:07]} 68. Kd2 {[%clk 0:00:17]}  Kg4 {[%clk 0:00:08]} 69. Ke2 {[%clk 0:00:18]}  h4 {[%clk 0:00:08]} 70. Kf2 {[%clk 0:00:18]}  h3 {[%clk 0:00:09]} 71. Ke2 {[%clk 0:00:19]}  h2 {[%clk 0:00:10]} 72. Kf2 {[%clk 0:00:20]}  h1=Q {[%clk 0:00:10]} 73. Ke2 {[%clk 0:00:21]}  Qh2+ {[%clk 0:00:11]} 74. Kf1 {[%clk 0:00:22]}  Rg1# {[%clk 0:00:12]} 0-1


[Site "https://www.chess.com"]

[Event "Titled Tuesday Blitz February 28 Late 2023"]
[White "Carrasco Miranda, Andres"]
[Black "Rodrigues, Tiago Pereira"]
[WhiteFideId "3405990"]
[BlackFideId "2101203"]
[WhiteElo "2183"]
[BlackElo "2168"]
[Result "1/2-1/2"]
[Round "06"]
[TimeControl "180+2"]
[Date "2023.02.28"]
[WhiteClock "0:00:32"]
[BlackClock "0:01:09"]

1. d4 {[%clk 0:03:00]}  Nf6 {[%clk 0:02:58]} 2. c4 {[%clk 0:03:00]}  g6 {[%clk 0:02:55]} 3. g3 {[%clk 0:03:00]}  c6 {[%clk 0:02:55]} 4. Bg2 {[%clk 0:02:58]}  d5 {[%clk 0:02:56]} 5. Qa4 {[%clk 0:02:58]}  Bd7 {[%clk 0:02:55]} 6. cxd5 {[%clk 0:02:58]}  cxd5 {[%clk 0:02:55]} 7. Qb3 {[%clk 0:02:58]}  Qb6 {[%clk 0:02:54]} 8. Nf3 {[%clk 0:02:50]}  Qxb3 {[%clk 0:02:50]} 9. axb3 {[%clk 0:02:51]}  Nc6 {[%clk 0:02:50]} 10. Nc3 {[%clk 0:02:49]}  Rc8 {[%clk 0:02:44]} 11. O-O {[%clk 0:02:43]}  e6 {[%clk 0:02:41]} 12. Ne5 {[%clk 0:02:27]}  Nxd4 {[%clk 0:02:38]} 13. Rxa7 {[%clk 0:02:25]}  Bc6 {[%clk 0:02:29]} 14. Bg5 {[%clk 0:01:57]}  Be7 {[%clk 0:02:24]} 15. Nxc6 {[%clk 0:01:55]}  bxc6 {[%clk 0:02:23]} 16. e4 {[%clk 0:01:52]}  h6 {[%clk 0:02:20]} 17. Be3 {[%clk 0:01:21]}  Nxb3 {[%clk 0:02:13]} 18. exd5 {[%clk 0:01:19]}  Nxd5 {[%clk 0:01:55]} 19. Nxd5 {[%clk 0:01:13]}  cxd5 {[%clk 0:01:52]} 20. Rb7 {[%clk 0:01:05]}  Nc5 {[%clk 0:01:50]} 21. Ra7 {[%clk 0:00:31]}  Nb3 {[%clk 0:01:42]} 22. Rb7 {[%clk 0:00:30]}  d4 {[%clk 0:01:34]} 23. Rxb3 {[%clk 0:00:26]}  dxe3 {[%clk 0:01:34]} 24. Rxe3 {[%clk 0:00:26]}  O-O {[%clk 0:01:35]} 25. Rb3 {[%clk 0:00:26]}  Rb8 {[%clk 0:01:25]} 26. Rxb8 {[%clk 0:00:23]}  Rxb8 {[%clk 0:01:26]} 27. Rb1 {[%clk 0:00:23]}  Rb3 {[%clk 0:01:23]} 28. Kf1 {[%clk 0:00:22]}  Bf6 {[%clk 0:01:23]} 29. Ke2 {[%clk 0:00:20]}  Bxb2 {[%clk 0:01:14]} 30. Kd2 {[%clk 0:00:20]}  Rb6 {[%clk 0:01:13]} 31. Kc2 {[%clk 0:00:19]}  Bd4 {[%clk 0:01:12]} 32. Rxb6 {[%clk 0:00:20]}  Bxb6 {[%clk 0:01:13]} 33. f3 {[%clk 0:00:20]}  Kf8 {[%clk 0:01:11]} 34. Kd3 {[%clk 0:00:20]}  Ke7 {[%clk 0:01:10]} 35. g4 {[%clk 0:00:20]}  Bc7 {[%clk 0:01:10]} 36. h3 {[%clk 0:00:19]}  Kf6 {[%clk 0:01:10]} 37. Ke4 {[%clk 0:00:19]}  Kg5 {[%clk 0:01:10]} 38. Bf1 {[%clk 0:00:17]}  Kh4 {[%clk 0:01:09]} 39. Ke3 {[%clk 0:00:16]}  Kg3 {[%clk 0:01:08]} 40. Ke2 {[%clk 0:00:16]}  Bf4 {[%clk 0:01:03]} 41. h4 {[%clk 0:00:11]}  Kxh4 {[%clk 0:01:02]} 42. Kf2 {[%clk 0:00:12]}  Kg5 {[%clk 0:00:41]} 43. Kg2 {[%clk 0:00:11]}  Kf6 {[%clk 0:00:41]} 44. Bb5 {[%clk 0:00:11]}  Ke7 {[%clk 0:00:41]} 45. Kf2 {[%clk 0:00:11]}  Kd6 {[%clk 0:00:41]} 46. Be8 {[%clk 0:00:10]}  Ke7 {[%clk 0:00:41]} 47. Bb5 {[%clk 0:00:10]}  f5 {[%clk 0:00:41]} 48. Bd3 {[%clk 0:00:07]}  Kf6 {[%clk 0:00:41]} 49. Bc4 {[%clk 0:00:07]}  Bd6 {[%clk 0:00:40]} 50. Bb3 {[%clk 0:00:06]}  Ke5 {[%clk 0:00:40]} 51. Ba2 {[%clk 0:00:06]}  fxg4 {[%clk 0:00:35]} 52. fxg4 {[%clk 0:00:07]}  Kf6 {[%clk 0:00:32]} 53. Kf3 {[%clk 0:00:07]}  Bc7 {[%clk 0:00:29]} 54. Bb1 {[%clk 0:00:08]}  Kg5 {[%clk 0:00:28]} 55. Ba2 {[%clk 0:00:07]}  e5 {[%clk 0:00:27]} 56. Bb1 {[%clk 0:00:07]}  h5 {[%clk 0:00:26]} 57. gxh5 {[%clk 0:00:08]}  gxh5 {[%clk 0:00:27]} 58. Kg2 {[%clk 0:00:07]}  h4 {[%clk 0:00:25]} 59. Kh1 {[%clk 0:00:08]}  Kg4 {[%clk 0:00:25]} 60. Bc2 {[%clk 0:00:09]}  Kg3 {[%clk 0:00:26]} 61. Bb1 {[%clk 0:00:09]}  Bb6 {[%clk 0:00:23]} 62. Bc2 {[%clk 0:00:10]}  Be3 {[%clk 0:00:21]} 63. Bb1 {[%clk 0:00:10]}  Bf4 {[%clk 0:00:22]} 64. Bc2 {[%clk 0:00:11]}  Kh3 {[%clk 0:00:23]} 65. Bb1 {[%clk 0:00:11]}  Kg4 {[%clk 0:00:24]} 66. Bc2 {[%clk 0:00:12]}  Kf3 {[%clk 0:00:25]} 67. Bb1 {[%clk 0:00:13]}  Ke2 {[%clk 0:00:25]} 68. Bc2 {[%clk 0:00:13]}  Kd2 {[%clk 0:00:26]} 69. Bb1 {[%clk 0:00:13]}  Kc3 {[%clk 0:00:27]} 70. Bf5 {[%clk 0:00:14]}  Kd4 {[%clk 0:00:27]} 71. Bg6 {[%clk 0:00:14]}  Ke3 {[%clk 0:00:28]} 72. Bh7 {[%clk 0:00:14]}  Kf3 {[%clk 0:00:28]} 73. Bg6 {[%clk 0:00:15]}  Bg3 {[%clk 0:00:29]} 74. Bh7 {[%clk 0:00:15]}  Kg4 {[%clk 0:00:30]} 75. Bg6 {[%clk 0:00:16]}  Kf4 {[%clk 0:00:31]} 76. Bb1 {[%clk 0:00:16]}  Kg5 {[%clk 0:00:32]} 77. Bc2 {[%clk 0:00:16]}  Kg4 {[%clk 0:00:33]} 78. Bb1 {[%clk 0:00:17]}  Kf3 {[%clk 0:00:34]} 79. Bc2 {[%clk 0:00:17]}  h3 {[%clk 0:00:35]} 80. Bb1 {[%clk 0:00:18]}  h2 {[%clk 0:00:36]} 81. Bc2 {[%clk 0:00:18]}  Bf4 {[%clk 0:00:36]} 82. Bb1 {[%clk 0:00:18]}  Ke3 {[%clk 0:00:37]} 83. Bc2 {[%clk 0:00:19]}  Kd2 {[%clk 0:00:38]} 84. Bh7 {[%clk 0:00:19]}  Ke3 {[%clk 0:00:38]} 85. Bg6 {[%clk 0:00:19]}  Kf3 {[%clk 0:00:39]} 86. Bh7 {[%clk 0:00:20]}  Kg4 {[%clk 0:00:40]} 87. Bb1 {[%clk 0:00:19]}  Kh4 {[%clk 0:00:41]} 88. Bc2 {[%clk 0:00:20]}  Kg3 {[%clk 0:00:42]} 89. Bb1 {[%clk 0:00:20]}  Kf2 {[%clk 0:00:43]} 90. Bc2 {[%clk 0:00:20]}  Ke2 {[%clk 0:00:44]} 91. Bb1 {[%clk 0:00:20]}  Kd2 {[%clk 0:00:44]} 92. Bh7 {[%clk 0:00:21]}  Ke3 {[%clk 0:00:45]} 93. Bg6 {[%clk 0:00:21]}  Bg3 {[%clk 0:00:45]} 94. Bh7 {[%clk 0:00:21]}  Kf4 {[%clk 0:00:46]} 95. Bb1 {[%clk 0:00:21]}  Bf2 {[%clk 0:00:47]} 96. Bc2 {[%clk 0:00:22]}  Bg1 {[%clk 0:00:48]} 97. Bb1 {[%clk 0:00:22]}  Ke3 {[%clk 0:00:49]} 98. Bh7 {[%clk 0:00:22]}  Kf3 {[%clk 0:00:50]} 99. Bg6 {[%clk 0:00:22]}  Ke2 {[%clk 0:00:51]} 100. Bh7 {[%clk 0:00:23]}  Kd2 {[%clk 0:00:52]} 101. Bg6 {[%clk 0:00:23]}  Kc3 {[%clk 0:00:52]} 102. Bh7 {[%clk 0:00:23]}  Kc4 {[%clk 0:00:53]} 103. Bg6 {[%clk 0:00:24]}  Kd5 {[%clk 0:00:54]} 104. Bh7 {[%clk 0:00:24]}  Kc5 {[%clk 0:00:55]} 105. Bg6 {[%clk 0:00:25]}  Kc6 {[%clk 0:00:56]} 106. Bh7 {[%clk 0:00:25]}  Kd7 {[%clk 0:00:57]} 107. Bg6 {[%clk 0:00:26]}  Ke7 {[%clk 0:00:58]} 108. Bh7 {[%clk 0:00:26]}  Ke6 {[%clk 0:00:59]} 109. Bg6 {[%clk 0:00:26]}  Kd5 {[%clk 0:01:00]} 110. Bh7 {[%clk 0:00:26]}  Kd6 {[%clk 0:01:01]} 111. Bg6 {[%clk 0:00:26]}  Ke6 {[%clk 0:01:01]} 112. Bh7 {[%clk 0:00:27]}  Kf6 {[%clk 0:01:02]} 113. Bb1 {[%clk 0:00:27]}  Kg5 {[%clk 0:01:03]} 114. Bc2 {[%clk 0:00:28]}  Kf4 {[%clk 0:01:04]} 115. Bb1 {[%clk 0:00:28]}  Kf3 {[%clk 0:01:05]} 116. Bc2 {[%clk 0:00:29]}  e4 {[%clk 0:01:05]} 117. Bxe4+ {[%clk 0:00:28]}  Kxe4 {[%clk 0:01:06]} 118. Kg2 {[%clk 0:00:29]}  Kd3 {[%clk 0:01:07]} 119. Kh1 {[%clk 0:00:30]}  Ke2 {[%clk 0:01:08]} 120. Kg2 {[%clk 0:00:31]}  Ke1 {[%clk 0:01:09]} 121. Kh1 {[%clk 0:00:32]}  Kf1 {[%clk 0:01:09]} 1/2-1/2


[Site "https://www.chess.com"]

[Event "Titled Tuesday Blitz February 28 Late 2023"]
[White "Escalante Ramirez, Rafael"]
[Black "Jimenez Almeida, Luis David"]
[WhiteFideId "3900177"]
[BlackFideId "22242244"]
[WhiteElo "2358"]
[BlackElo "2245"]
[Result "0-1"]
[Round "06"]
[TimeControl "180+2"]
[Date "2023.02.28"]
[WhiteClock "0:00:01"]
[BlackClock "0:00:23"]

1. Nf3 {[%clk 0:03:00]}  g6 {[%clk 0:02:57]} 2. d4 {[%clk 0:03:00]}  Bg7 {[%clk 0:02:57]} 3. c4 {[%clk 0:03:00]}  f5 {[%clk 0:02:57]} 4. g3 {[%clk 0:03:00]}  Nf6 {[%clk 0:02:57]} 5. Bg2 {[%clk 0:03:00]}  O-O {[%clk 0:02:58]} 6. O-O {[%clk 0:02:59]}  d6 {[%clk 0:02:58]} 7. d5 {[%clk 0:02:59]}  c6 {[%clk 0:02:57]} 8. Nc3 {[%clk 0:02:57]}  e5 {[%clk 0:02:55]} 9. dxe6 {[%clk 0:02:56]}  Bxe6 {[%clk 0:02:55]} 10. Nd2 {[%clk 0:02:42]}  Qe7 {[%clk 0:02:52]} 11. Qc2 {[%clk 0:02:38]}  Na6 {[%clk 0:02:51]} 12. a3 {[%clk 0:02:35]}  Rae8 {[%clk 0:02:51]} 13. b3 {[%clk 0:02:31]}  Nc5 {[%clk 0:02:47]} 14. Bb2 {[%clk 0:02:30]}  Bf7 {[%clk 0:02:43]} 15. e3 {[%clk 0:02:26]}  h5 {[%clk 0:02:40]} 16. h4 {[%clk 0:02:13]}  Ng4 {[%clk 0:02:39]} 17. Nf3 {[%clk 0:02:03]}  Bf6 {[%clk 0:02:15]} 18. Rad1 {[%clk 0:01:59]}  a5 {[%clk 0:02:06]} 19. Ne2 {[%clk 0:01:26]}  Ne4 {[%clk 0:01:53]} 20. Bxf6 {[%clk 0:01:20]}  Qxf6 {[%clk 0:01:54]} 21. Rd3 {[%clk 0:01:06]}  b5 {[%clk 0:01:34]} 22. Nf4 {[%clk 0:01:00]}  a4 {[%clk 0:01:28]} 23. cxb5 {[%clk 0:00:50]}  cxb5 {[%clk 0:01:13]} 24. bxa4 {[%clk 0:00:29]}  bxa4 {[%clk 0:01:13]} 25. Rd4 {[%clk 0:00:23]}  Bb3 {[%clk 0:01:08]} 26. Qe2 {[%clk 0:00:17]}  Rc8 {[%clk 0:01:06]} 27. Qa6 {[%clk 0:00:12]}  Ne5 {[%clk 0:00:52]} 28. Nd5 {[%clk 0:00:09]}  Qf7 {[%clk 0:00:39]} 29. Nf4 {[%clk 0:00:07]}  Bc4 {[%clk 0:00:36]} 30. Rxc4 {[%clk 0:00:05]}  Nxc4 {[%clk 0:00:31]} 31. Nh3 {[%clk 0:00:01]}  Ra8 {[%clk 0:00:23]} 0-1


[Site "https://www.chess.com"]

[Event "Titled Tuesday Blitz February 28 Late 2023"]
[White "Van Foreest, Machteld"]
[Black "Filgueira, Hernan"]
[WhiteFideId "1051563"]
[BlackFideId "101770"]
[WhiteElo "2018"]
[BlackElo "2363"]
[Result "1/2-1/2"]
[Round "06"]
[TimeControl "180+2"]
[Date "2023.02.28"]
[WhiteClock "0:00:36"]
[BlackClock "0:02:31"]

1. e4 {[%clk 0:03:00]}  d6 {[%clk 0:02:59]} 2. d4 {[%clk 0:02:56]}  Nf6 {[%clk 0:02:59]} 3. Nc3 {[%clk 0:02:52]}  c6 {[%clk 0:02:59]} 4. Nf3 {[%clk 0:02:48]}  g6 {[%clk 0:02:59]} 5. Be2 {[%clk 0:02:38]}  Bg7 {[%clk 0:02:58]} 6. O-O {[%clk 0:02:36]}  O-O {[%clk 0:02:58]} 7. Bf4 {[%clk 0:02:29]}  Bg4 {[%clk 0:02:55]} 8. h3 {[%clk 0:02:25]}  Bxf3 {[%clk 0:02:54]} 9. Bxf3 {[%clk 0:02:26]}  Nfd7 {[%clk 0:02:55]} 10. Re1 {[%clk 0:02:22]}  Qc7 {[%clk 0:02:54]} 11. Qd2 {[%clk 0:02:21]}  e5 {[%clk 0:02:54]} 12. dxe5 {[%clk 0:02:11]}  Nxe5 {[%clk 0:02:54]} 13. Bxe5 {[%clk 0:01:54]}  Bxe5 {[%clk 0:02:53]} 14. Rad1 {[%clk 0:01:52]}  Na6 {[%clk 0:02:50]} 15. h4 {[%clk 0:01:23]}  Nc5 {[%clk 0:02:47]} 16. h5 {[%clk 0:01:21]}  Ne6 {[%clk 0:02:47]} 17. h6 {[%clk 0:01:13]}  Bf4 {[%clk 0:02:44]} 18. Qd3 {[%clk 0:01:08]}  Rad8 {[%clk 0:02:43]} 19. Qc4 {[%clk 0:00:57]}  Bxh6 {[%clk 0:02:41]} 20. Bg4 {[%clk 0:00:57]}  Rfe8 {[%clk 0:02:37]} 21. Bxe6 {[%clk 0:00:53]}  fxe6 {[%clk 0:02:32]} 22. e5 {[%clk 0:00:36]}  d5 {[%clk 0:02:31]} 1/2-1/2


[Site "https://www.chess.com"]

[Event "Titled Tuesday Blitz February 28 Late 2023"]
[White "Kostiukov, Alexandr"]
[Black "Balla, Tamas-Kristof"]
[WhiteFideId "14108100"]
[BlackFideId "1208497"]
[WhiteElo "2202"]
[BlackElo "2334"]
[Result "1-0"]
[Round "06"]
[TimeControl "180+2"]
[Date "2023.02.28"]
[WhiteClock "0:00:07"]
[BlackClock "0:00:06"]

1. g3 {[%clk 0:03:00]}  c5 {[%clk 0:02:58]} 2. Bg2 {[%clk 0:03:00]}  Nc6 {[%clk 0:02:58]} 3. c4 {[%clk 0:03:00]}  g6 {[%clk 0:02:54]} 4. Nf3 {[%clk 0:03:00]}  Bg7 {[%clk 0:02:51]} 5. O-O {[%clk 0:03:00]}  e6 {[%clk 0:02:51]} 6. Nc3 {[%clk 0:02:53]}  Nge7 {[%clk 0:02:51]} 7. d4 {[%clk 0:02:53]}  cxd4 {[%clk 0:02:46]} 8. Nb5 {[%clk 0:02:53]}  d5 {[%clk 0:02:42]} 9. cxd5 {[%clk 0:02:52]}  Nxd5 {[%clk 0:02:37]} 10. Nfxd4 {[%clk 0:02:52]}  Nxd4 {[%clk 0:02:36]} 11. Nxd4 {[%clk 0:02:53]}  O-O {[%clk 0:02:36]} 12. e4 {[%clk 0:02:50]}  Nb6 {[%clk 0:02:32]} 13. Nb5 {[%clk 0:02:46]}  Bd7 {[%clk 0:02:29]} 14. Nc3 {[%clk 0:02:12]}  Rc8 {[%clk 0:02:24]} 15. Kh1 {[%clk 0:02:09]}  Qe7 {[%clk 0:02:17]} 16. f4 {[%clk 0:02:08]}  Bc6 {[%clk 0:02:11]} 17. e5 {[%clk 0:01:56]}  Bxg2+ {[%clk 0:02:07]} 18. Kxg2 {[%clk 0:01:56]}  Nc4 {[%clk 0:02:06]} 19. Qf3 {[%clk 0:01:50]}  Rfd8 {[%clk 0:02:03]} 20. b3 {[%clk 0:01:34]}  Nd2 {[%clk 0:01:58]} 21. Bxd2 {[%clk 0:01:28]}  Rxd2+ {[%clk 0:01:58]} 22. Kh3 {[%clk 0:01:16]}  f6 {[%clk 0:01:20]} 23. Ne4 {[%clk 0:01:05]}  Rdc2 {[%clk 0:01:15]} 24. exf6 {[%clk 0:00:56]}  Bxf6 {[%clk 0:01:16]} 25. Rad1 {[%clk 0:00:43]}  Bg7 {[%clk 0:01:14]} 26. Rf2 {[%clk 0:00:18]}  e5 {[%clk 0:01:11]} 27. Rxc2 {[%clk 0:00:17]}  Rxc2 {[%clk 0:01:09]} 28. Qd3 {[%clk 0:00:15]}  Qe6+ {[%clk 0:00:56]} 29. g4 {[%clk 0:00:14]}  Rc8 {[%clk 0:00:51]} 30. Ng5 {[%clk 0:00:14]}  Qc6 {[%clk 0:00:35]} 31. fxe5 {[%clk 0:00:09]}  h6 {[%clk 0:00:33]} 32. Nf3 {[%clk 0:00:07]}  Rf8 {[%clk 0:00:31]} 33. Kg2 {[%clk 0:00:06]}  Kh7 {[%clk 0:00:27]} 34. Qd5 {[%clk 0:00:06]}  Qc2+ {[%clk 0:00:27]} 35. Rd2 {[%clk 0:00:06]}  Qc8 {[%clk 0:00:20]} 36. h3 {[%clk 0:00:05]}  h5 {[%clk 0:00:14]} 37. Kg3 {[%clk 0:00:04]}  hxg4 {[%clk 0:00:14]} 38. hxg4 {[%clk 0:00:05]}  Qe8 {[%clk 0:00:14]} 39. Rh2+ {[%clk 0:00:05]}  Bh6 {[%clk 0:00:14]} 40. g5 {[%clk 0:00:06]}  Rxf3+ {[%clk 0:00:11]} 41. Kxf3 {[%clk 0:00:06]}  Qf8+ {[%clk 0:00:11]} 42. Kg3 {[%clk 0:00:05]}  Qf5 {[%clk 0:00:08]} 43. Rxh6+ {[%clk 0:00:05]}  Kg7 {[%clk 0:00:09]} 44. Qxb7+ {[%clk 0:00:05]}  Kg8 {[%clk 0:00:08]} 45. Qb8+ {[%clk 0:00:05]}  Kg7 {[%clk 0:00:09]} 46. Qh8+ {[%clk 0:00:05]}  Kf7 {[%clk 0:00:09]} 47. Rh7+ {[%clk 0:00:06]}  Ke6 {[%clk 0:00:10]} 48. Qe8+ {[%clk 0:00:06]}  Kd5 {[%clk 0:00:10]} 49. Rd7+ {[%clk 0:00:05]}  Ke4 {[%clk 0:00:11]} 50. Qa8+ {[%clk 0:00:05]}  Ke3 {[%clk 0:00:11]} 51. Rd3+ {[%clk 0:00:04]}  Qxd3 {[%clk 0:00:07]} 52. Qf3+ {[%clk 0:00:04]}  Kd4 {[%clk 0:00:03]} 53. Qxd3+ {[%clk 0:00:05]}  Kxd3 {[%clk 0:00:04]} 54. e6 {[%clk 0:00:05]}  Kc3 {[%clk 0:00:05]} 55. e7 {[%clk 0:00:06]}  Kb2 {[%clk 0:00:06]} 56. e8=Q {[%clk 0:00:07]}  Kxa2 {[%clk 0:00:06]} 57. Qxg6 {[%clk 0:00:07]} 1-0


[Site "https://www.chess.com"]

[Event "Titled Tuesday Blitz February 28 Late 2023"]
[White "Ward, Ieuan C"]
[Black "Prydun, Andriy"]
[WhiteFideId "406627"]
[BlackFideId "14145898"]
[WhiteElo "2321"]
[BlackElo "2164"]
[Result "1-0"]
[Round "06"]
[TimeControl "180+2"]
[Date "2023.02.28"]
[WhiteClock "0:01:06"]
[BlackClock "0:01:17"]

1. d4 {[%clk 0:03:00]}  Nf6 {[%clk 0:02:36]} 2. c4 {[%clk 0:03:00]}  c5 {[%clk 0:02:37]} 3. d5 {[%clk 0:03:00]}  e6 {[%clk 0:02:37]} 4. Nc3 {[%clk 0:03:00]}  exd5 {[%clk 0:02:38]} 5. cxd5 {[%clk 0:03:00]}  d6 {[%clk 0:02:39]} 6. e4 {[%clk 0:03:00]}  g6 {[%clk 0:02:40]} 7. Bb5+ {[%clk 0:02:58]}  Nfd7 {[%clk 0:02:38]} 8. Nf3 {[%clk 0:02:56]}  a6 {[%clk 0:02:39]} 9. Bxd7+ {[%clk 0:02:56]}  Bxd7 {[%clk 0:02:37]} 10. O-O {[%clk 0:02:55]}  Bg4 {[%clk 0:02:38]} 11. a4 {[%clk 0:02:53]}  Nd7 {[%clk 0:02:38]} 12. h3 {[%clk 0:02:53]}  h5 {[%clk 0:02:36]} 13. hxg4 {[%clk 0:02:43]}  hxg4 {[%clk 0:02:37]} 14. Ng5 {[%clk 0:02:43]}  Ne5 {[%clk 0:02:38]} 15. f4 {[%clk 0:02:35]}  gxf3 {[%clk 0:02:37]} 16. Nxf3 {[%clk 0:02:31]}  Bg7 {[%clk 0:02:37]} 17. Bg5 {[%clk 0:02:26]}  Nxf3+ {[%clk 0:02:36]} 18. Qxf3 {[%clk 0:02:26]}  Bd4+ {[%clk 0:02:27]} 19. Be3 {[%clk 0:02:24]}  Qh4 {[%clk 0:02:02]} 20. Bxd4 {[%clk 0:02:08]}  cxd4 {[%clk 0:02:03]} 21. Qxf7+ {[%clk 0:02:04]}  Kd8 {[%clk 0:02:03]} 22. Ne2 {[%clk 0:01:26]}  d3 {[%clk 0:01:59]} 23. Nd4 {[%clk 0:01:11]}  Qh2+ {[%clk 0:01:16]} 24. Kf2 {[%clk 0:01:11]}  Qh4+ {[%clk 0:01:17]} 25. Ke3 {[%clk 0:01:06]} 1-0


[Site "https://www.chess.com"]

[Event "Titled Tuesday Blitz February 28 Late 2023"]
[White "Sokac, Marko"]
[Black "Romero Ruscalleda, Josep"]
[WhiteFideId "14531356"]
[BlackFideId "2231859"]
[WhiteElo "2355"]
[BlackElo "2183"]
[Result "1-0"]
[Round "06"]
[TimeControl "180+2"]
[Date "2023.02.28"]
[WhiteClock "0:00:19"]
[BlackClock "0:00:20"]

1. e4 {[%clk 0:03:00]}  g6 {[%clk 0:03:00]} 2. h4 {[%clk 0:03:01]}  h5 {[%clk 0:02:58]} 3. d4 {[%clk 0:03:01]}  d6 {[%clk 0:02:58]} 4. Nc3 {[%clk 0:03:00]}  Nd7 {[%clk 0:02:58]} 5. Be3 {[%clk 0:03:01]}  Bg7 {[%clk 0:02:56]} 6. Qd2 {[%clk 0:03:01]}  Ngf6 {[%clk 0:02:55]} 7. f3 {[%clk 0:03:01]}  c5 {[%clk 0:02:53]} 8. Nge2 {[%clk 0:02:59]}  cxd4 {[%clk 0:02:53]} 9. Nxd4 {[%clk 0:03:00]}  Nc5 {[%clk 0:02:48]} 10. Be2 {[%clk 0:02:59]}  Qa5 {[%clk 0:02:43]} 11. Ncb5 {[%clk 0:02:47]}  Qxd2+ {[%clk 0:02:41]} 12. Bxd2 {[%clk 0:02:48]}  Kd8 {[%clk 0:02:33]} 13. b4 {[%clk 0:02:37]}  Ne6 {[%clk 0:02:30]} 14. Nxe6+ {[%clk 0:02:32]}  Bxe6 {[%clk 0:02:30]} 15. Nd4 {[%clk 0:02:32]}  Bd7 {[%clk 0:02:26]} 16. c3 {[%clk 0:02:28]}  Rc8 {[%clk 0:02:18]} 17. O-O {[%clk 0:02:11]}  Ne8 {[%clk 0:01:55]} 18. Rac1 {[%clk 0:02:04]}  Nc7 {[%clk 0:01:52]} 19. Be3 {[%clk 0:02:02]}  b6 {[%clk 0:01:48]} 20. Rfd1 {[%clk 0:01:59]}  Ne6 {[%clk 0:01:46]} 21. Ba6 {[%clk 0:01:58]}  Rc7 {[%clk 0:01:40]} 22. a4 {[%clk 0:01:55]}  Bxa4 {[%clk 0:01:31]} 23. Re1 {[%clk 0:01:30]}  Nxd4 {[%clk 0:01:29]} 24. cxd4 {[%clk 0:01:29]}  b5 {[%clk 0:01:26]} 25. Rxc7 {[%clk 0:01:15]}  Kxc7 {[%clk 0:01:26]} 26. d5 {[%clk 0:01:16]}  Rb8 {[%clk 0:01:04]} 27. Rc1+ {[%clk 0:01:12]}  Kd7 {[%clk 0:01:04]} 28. Rc6 {[%clk 0:01:01]}  Bb2 {[%clk 0:00:52]} 29. Bxa7 {[%clk 0:00:57]}  Ra8 {[%clk 0:00:50]} 30. Be3 {[%clk 0:00:53]}  Bc3 {[%clk 0:00:38]} 31. Bxb5 {[%clk 0:00:31]}  Bxb5 {[%clk 0:00:31]} 32. Rxc3 {[%clk 0:00:32]}  Ra1+ {[%clk 0:00:29]} 33. Kh2 {[%clk 0:00:22]}  Rb1 {[%clk 0:00:27]} 34. Bb6 {[%clk 0:00:18]}  Rxb4 {[%clk 0:00:24]} 35. Rc7+ {[%clk 0:00:18]}  Ke8 {[%clk 0:00:24]} 36. Rc8+ {[%clk 0:00:18]}  Kd7 {[%clk 0:00:20]} 37. Rd8# {[%clk 0:00:19]} 1-0


[Site "https://www.chess.com"]